[Event "Titled Tuesday Blitz July 11 Early 2023"]
[White "Sidletskyi, Ivan"]
[Black "Bryakin, Mikhail"]
[WhiteFideId "14156024"]
[BlackFideId "4165314"]
[WhiteElo "2523"]
[BlackElo "2729"]
[Result "1-0"]
[Round "2"]
[TimeControl "180+2"]
[Date "2023.07.11"]
[WhiteClock "0:00:26"]
[BlackClock "0:00:50"]
[Board "61"]

1. c4 {[%clk 0:03:00]}  c5 {[%clk 0:02:57]} 2. Nc3 {[%clk 0:03:00]}  Nc6 {[%clk 0:02:57]} 3. g3 {[%clk 0:03:01]}  g6 {[%clk 0:02:56]} 4. Bg2 {[%clk 0:03:01]}  Bg7 {[%clk 0:02:57]} 5. a3 {[%clk 0:02:59]}  e6 {[%clk 0:02:57]} 6. b4 {[%clk 0:02:57]}  d6 {[%clk 0:02:51]} 7. b5 {[%clk 0:02:40]}  Na5 {[%clk 0:02:51]} 8. Qa4 {[%clk 0:02:35]}  Bd7 {[%clk 0:02:45]} 9. Bb2 {[%clk 0:02:26]}  Ne7 {[%clk 0:02:40]} 10. d3 {[%clk 0:02:24]}  O-O {[%clk 0:02:25]} 11. e4 {[%clk 0:02:18]}  b6 {[%clk 0:02:20]} 12. Nge2 {[%clk 0:02:15]}  Rb8 {[%clk 0:02:18]} 13. Qc2 {[%clk 0:02:13]}  Bc8 {[%clk 0:02:17]} 14. O-O {[%clk 0:02:12]}  Bb7 {[%clk 0:02:18]} 15. f4 {[%clk 0:02:13]}  d5 {[%clk 0:02:18]} 16. cxd5 {[%clk 0:02:02]}  exd5 {[%clk 0:02:19]} 17. e5 {[%clk 0:02:02]}  d4 {[%clk 0:02:18]} 18. Ne4 {[%clk 0:01:59]}  Nd5 {[%clk 0:02:17]} 19. Bc1 {[%clk 0:01:47]}  f6 {[%clk 0:02:12]} 20. Nd6 {[%clk 0:01:43]}  fxe5 {[%clk 0:02:02]} 21. Nxb7 {[%clk 0:01:40]}  Rxb7 {[%clk 0:02:03]} 22. Qa2 {[%clk 0:01:35]}  Rd7 {[%clk 0:02:01]} 23. Bd2 {[%clk 0:01:28]}  Kh8 {[%clk 0:01:50]} 24. fxe5 {[%clk 0:01:26]}  Rxf1+ {[%clk 0:01:46]} 25. Rxf1 {[%clk 0:01:26]}  Bxe5 {[%clk 0:01:47]} 26. Bxd5 {[%clk 0:00:58]}  Rxd5 {[%clk 0:01:48]} 27. Bh6 {[%clk 0:00:59]}  Bg7 {[%clk 0:01:28]} 28. Bxg7+ {[%clk 0:00:59]}  Kxg7 {[%clk 0:01:29]} 29. Nf4 {[%clk 0:00:59]}  Rd6 {[%clk 0:01:27]} 30. Ne6+ {[%clk 0:00:59]}  Rxe6 {[%clk 0:01:27]} 31. Qxe6 {[%clk 0:00:59]}  Qg5 {[%clk 0:01:07]} 32. Rf7+ {[%clk 0:00:58]}  Kh6 {[%clk 0:01:08]} 33. Qh3+ {[%clk 0:00:56]}  Qh5 {[%clk 0:01:08]} 34. Qxh5+ {[%clk 0:00:57]}  Kxh5 {[%clk 0:01:05]} 35. Rxh7+ {[%clk 0:00:52]}  Kg4 {[%clk 0:01:06]} 36. Kf2 {[%clk 0:00:52]}  Nb3 {[%clk 0:01:03]} 37. Rxa7 {[%clk 0:00:50]}  Nc1 {[%clk 0:01:04]} 38. h3+ {[%clk 0:00:44]}  Kf5 {[%clk 0:01:04]} 39. Rf7+ {[%clk 0:00:41]}  Ke5 {[%clk 0:01:04]} 40. Rf3 {[%clk 0:00:42]}  Na2 {[%clk 0:00:54]} 41. a4 {[%clk 0:00:37]}  Nc3 {[%clk 0:00:55]} 42. a5 {[%clk 0:00:32]}  bxa5 {[%clk 0:00:55]} 43. b6 {[%clk 0:00:32]}  Kd6 {[%clk 0:00:56]} 44. Rf6+ {[%clk 0:00:32]}  Kd7 {[%clk 0:00:55]} 45. Rxg6 {[%clk 0:00:29]}  a4 {[%clk 0:00:53]} 46. Rg7+ {[%clk 0:00:26]}  Kc6 {[%clk 0:00:53]} 47. b7 {[%clk 0:00:25]}  c4 {[%clk 0:00:49]} 48. b8=Q {[%clk 0:00:25]}  cxd3 {[%clk 0:00:50]} 49. Rc7+ {[%clk 0:00:25]}  Kd5 {[%clk 0:00:50]} 50. Qd8+ {[%clk 0:00:25]}  Ke4 {[%clk 0:00:50]} 51. Re7+ {[%clk 0:00:26]} 1-0


[Site "https://www.chess.com"]

[Event "Titled Tuesday Blitz July 11 Early 2023"]
[White "Brunner, Nicolas"]
[Black "Xu, Yi"]
[WhiteFideId "620246"]
[BlackFideId "8605564"]
[WhiteElo "2522"]
[BlackElo "2726"]
[Result "0-1"]
[Round "2"]
[TimeControl "180+2"]
[Date "2023.07.11"]
[WhiteClock "0:00:14"]
[BlackClock "0:00:49"]
[Board "62"]

1. Nf3 {[%clk 0:03:00]}  d5 {[%clk 0:02:59]} 2. g3 {[%clk 0:03:01]}  Nd7 {[%clk 0:02:59]} 3. Bg2 {[%clk 0:03:01]}  e5 {[%clk 0:02:59]} 4. d3 {[%clk 0:03:02]}  Ngf6 {[%clk 0:02:59]} 5. Nbd2 {[%clk 0:03:01]}  Bd6 {[%clk 0:02:59]} 6. O-O {[%clk 0:03:01]}  O-O {[%clk 0:02:58]} 7. e4 {[%clk 0:02:59]}  c6 {[%clk 0:02:59]} 8. Re1 {[%clk 0:02:58]}  Re8 {[%clk 0:02:58]} 9. c3 {[%clk 0:02:56]}  h6 {[%clk 0:02:45]} 10. Qc2 {[%clk 0:02:52]}  a5 {[%clk 0:02:37]} 11. b3 {[%clk 0:02:51]}  b6 {[%clk 0:02:34]} 12. Bb2 {[%clk 0:02:50]}  Bb7 {[%clk 0:02:34]} 13. a3 {[%clk 0:02:50]}  c5 {[%clk 0:02:21]} 14. exd5 {[%clk 0:02:47]}  Nxd5 {[%clk 0:02:20]} 15. Ne4 {[%clk 0:02:31]}  Bc7 {[%clk 0:02:16]} 16. c4 {[%clk 0:02:30]}  N5f6 {[%clk 0:02:15]} 17. Nxf6+ {[%clk 0:02:15]}  Qxf6 {[%clk 0:01:17]} 18. Nxe5 {[%clk 0:02:14]}  Bxg2 {[%clk 0:01:15]} 19. Nxd7 {[%clk 0:01:53]}  Qf3 {[%clk 0:01:15]} 20. Qc3 {[%clk 0:01:45]}  f6 {[%clk 0:01:12]} 21. d4 {[%clk 0:01:42]}  Rxe1+ {[%clk 0:01:07]} 22. Rxe1 {[%clk 0:01:42]}  cxd4 {[%clk 0:01:07]} 23. Qxf3 {[%clk 0:01:27]}  Bxf3 {[%clk 0:01:06]} 24. c5 {[%clk 0:01:11]}  d3 {[%clk 0:00:58]} 25. Bc3 {[%clk 0:01:04]}  Rd8 {[%clk 0:00:54]} 26. Re7 {[%clk 0:00:38]}  bxc5 {[%clk 0:00:51]} 27. Kf1 {[%clk 0:00:18]}  Bd6 {[%clk 0:00:49]} 28. Re3 {[%clk 0:00:14]}  Be2+ {[%clk 0:00:49]} 0-1


[Site "https://www.chess.com"]

[Event "Titled Tuesday Blitz July 11 Early 2023"]
[White "Kumsiashvili, Nikoloz"]
[Black "Reprintsev, Alexander"]
[WhiteFideId "13600621"]
[BlackFideId "14100541"]
[WhiteElo "2721"]
[BlackElo "2522"]
[Result "1-0"]
[Round "2"]
[TimeControl "180+2"]
[Date "2023.07.11"]
[WhiteClock "0:00:25"]
[BlackClock "0:00:11"]
[Board "63"]

1. Nf3 {[%clk 0:03:00]}  d5 {[%clk 0:02:59]} 2. b3 {[%clk 0:03:00]}  Nf6 {[%clk 0:02:55]} 3. Bb2 {[%clk 0:03:01]}  g6 {[%clk 0:02:55]} 4. e3 {[%clk 0:02:59]}  Bg7 {[%clk 0:02:55]} 5. Be2 {[%clk 0:02:59]}  O-O {[%clk 0:02:54]} 6. O-O {[%clk 0:02:59]}  a5 {[%clk 0:02:48]} 7. a3 {[%clk 0:02:57]}  b6 {[%clk 0:02:45]} 8. d3 {[%clk 0:02:56]}  c5 {[%clk 0:02:44]} 9. Nbd2 {[%clk 0:02:56]}  Nc6 {[%clk 0:02:44]} 10. c4 {[%clk 0:02:54]}  Bb7 {[%clk 0:02:42]} 11. Rc1 {[%clk 0:02:52]}  d4 {[%clk 0:02:33]} 12. exd4 {[%clk 0:02:52]}  cxd4 {[%clk 0:02:31]} 13. Re1 {[%clk 0:02:46]}  Nd7 {[%clk 0:02:28]} 14. Bf1 {[%clk 0:02:44]}  Nc5 {[%clk 0:02:27]} 15. Rb1 {[%clk 0:02:41]}  e5 {[%clk 0:02:25]} 16. Bc1 {[%clk 0:02:28]}  f5 {[%clk 0:02:17]} 17. Qc2 {[%clk 0:02:07]}  Ne6 {[%clk 0:02:09]} 18. b4 {[%clk 0:02:04]}  axb4 {[%clk 0:02:07]} 19. axb4 {[%clk 0:02:05]}  g5 {[%clk 0:02:01]} 20. b5 {[%clk 0:02:01]}  Qc7 {[%clk 0:01:28]} 21. bxc6 {[%clk 0:01:53]}  Bxc6 {[%clk 0:01:29]} 22. Qb3 {[%clk 0:01:29]}  g4 {[%clk 0:01:28]} 23. c5 {[%clk 0:01:27]}  gxf3 {[%clk 0:01:16]} 24. Qxe6+ {[%clk 0:01:26]}  Kh8 {[%clk 0:01:16]} 25. cxb6 {[%clk 0:01:22]}  Qb7 {[%clk 0:01:14]} 26. g3 {[%clk 0:01:20]}  Rae8 {[%clk 0:01:07]} 27. Qd6 {[%clk 0:01:08]}  e4 {[%clk 0:01:07]} 28. Nc4 {[%clk 0:01:03]}  e3 {[%clk 0:00:42]} 29. Nxe3 {[%clk 0:00:59]}  dxe3 {[%clk 0:00:41]} 30. Bxe3 {[%clk 0:01:00]}  Rf7 {[%clk 0:00:28]} 31. Bd4 {[%clk 0:00:54]}  Rg8 {[%clk 0:00:25]} 32. Bxg7+ {[%clk 0:00:51]}  Rfxg7 {[%clk 0:00:25]} 33. Rbc1 {[%clk 0:00:45]}  Rg6 {[%clk 0:00:22]} 34. Qd4+ {[%clk 0:00:40]}  R6g7 {[%clk 0:00:20]} 35. Re6 {[%clk 0:00:37]}  Bd7 {[%clk 0:00:19]} 36. Re7 {[%clk 0:00:26]}  h6 {[%clk 0:00:11]} 37. Rc7 {[%clk 0:00:25]} 1-0


[Site "https://www.chess.com"]

[Event "Titled Tuesday Blitz July 11 Early 2023"]
[White "ArchibaldCerveza29"]
[Black "Nazari, Arad"]
[BlackFideId "12577324"]
[WhiteElo "2521"]
[BlackElo "2717"]
[Result "0-1"]
[Round "2"]
[TimeControl "180+2"]
[Date "2023.07.11"]
[WhiteClock "0:00:05"]
[BlackClock "0:00:16"]
[Board "64"]

1. e4 {[%clk 0:02:56]}  c5 {[%clk 0:02:54]} 2. c3 {[%clk 0:02:56]}  d5 {[%clk 0:02:50]} 3. exd5 {[%clk 0:02:57]}  Qxd5 {[%clk 0:02:50]} 4. d4 {[%clk 0:02:57]}  g6 {[%clk 0:02:51]} 5. Nf3 {[%clk 0:02:55]}  Bg7 {[%clk 0:02:49]} 6. Be3 {[%clk 0:02:55]}  cxd4 {[%clk 0:02:49]} 7. cxd4 {[%clk 0:02:56]}  Nc6 {[%clk 0:02:45]} 8. Nc3 {[%clk 0:02:57]}  Qa5 {[%clk 0:02:45]} 9. Be2 {[%clk 0:02:54]}  Nh6 {[%clk 0:02:42]} 10. O-O {[%clk 0:02:54]}  Nf5 {[%clk 0:02:42]} 11. d5 {[%clk 0:02:45]}  Ne5 {[%clk 0:02:40]} 12. Nxe5 {[%clk 0:02:44]}  Bxe5 {[%clk 0:02:41]} 13. Bb5+ {[%clk 0:02:43]}  Bd7 {[%clk 0:02:42]} 14. Bxd7+ {[%clk 0:02:43]}  Kxd7 {[%clk 0:02:43]} 15. Re1 {[%clk 0:02:37]}  Rhc8 {[%clk 0:02:29]} 16. Bg5 {[%clk 0:02:16]}  Bxc3 {[%clk 0:02:26]} 17. bxc3 {[%clk 0:02:17]}  f6 {[%clk 0:02:20]} 18. Bf4 {[%clk 0:02:08]}  Rc4 {[%clk 0:02:11]} 19. Qb3 {[%clk 0:01:44]}  b5 {[%clk 0:01:57]} 20. Bd2 {[%clk 0:01:25]}  Rac8 {[%clk 0:01:51]} 21. Re6 {[%clk 0:01:14]}  R8c5 {[%clk 0:01:44]} 22. Rae1 {[%clk 0:01:09]}  Rxd5 {[%clk 0:01:41]} 23. Qc2 {[%clk 0:01:03]}  Rd6 {[%clk 0:00:58]} 24. Rxd6+ {[%clk 0:00:40]}  Nxd6 {[%clk 0:00:59]} 25. Qd3 {[%clk 0:00:38]}  Qxa2 {[%clk 0:00:55]} 26. Qd5 {[%clk 0:00:35]}  Qa6 {[%clk 0:00:40]} 27. Qe6+ {[%clk 0:00:34]}  Kc6 {[%clk 0:00:33]} 28. Qxe7 {[%clk 0:00:28]}  Qa2 {[%clk 0:00:28]} 29. Qe3 {[%clk 0:00:16]}  Re4 {[%clk 0:00:23]} 30. Qf3 {[%clk 0:00:11]}  Qxd2 {[%clk 0:00:17]} 31. Rxe4 {[%clk 0:00:11]}  Nxe4 {[%clk 0:00:17]} 32. Qxe4+ {[%clk 0:00:12]}  Kb6 {[%clk 0:00:15]} 33. h4 {[%clk 0:00:05]}  Qxc3 {[%clk 0:00:14]} 34. h5 {[%clk 0:00:04]}  gxh5 {[%clk 0:00:11]} 35. Qxh7 {[%clk 0:00:04]}  Qe1+ {[%clk 0:00:10]} 36. Kh2 {[%clk 0:00:04]}  Qxf2 {[%clk 0:00:11]} 37. Qxh5 {[%clk 0:00:05]}  b4 {[%clk 0:00:11]} 38. Qd5 {[%clk 0:00:04]}  Qf4+ {[%clk 0:00:11]} 39. Kg1 {[%clk 0:00:04]}  Qe3+ {[%clk 0:00:11]} 40. Kh2 {[%clk 0:00:04]}  Qe5+ {[%clk 0:00:11]} 41. Qxe5 {[%clk 0:00:03]}  fxe5 {[%clk 0:00:12]} 42. g4 {[%clk 0:00:04]}  b3 {[%clk 0:00:13]} 43. g5 {[%clk 0:00:04]}  b2 {[%clk 0:00:14]} 44. g6 {[%clk 0:00:05]}  b1=Q {[%clk 0:00:15]} 45. g7 {[%clk 0:00:06]}  Qg6 {[%clk 0:00:15]} 46. g8=Q {[%clk 0:00:05]}  Qxg8 {[%clk 0:00:16]} 0-1


[Site "https://www.chess.com"]

[Event "Titled Tuesday Blitz July 11 Early 2023"]
[White "Wagner, Dennis"]
[Black "slidingknight2775"]
[WhiteFideId "24650684"]
[WhiteElo "2706"]
[BlackElo "2518"]
[Result "1-0"]
[Round "2"]
[TimeControl "180+2"]
[Date "2023.07.11"]
[WhiteClock "0:02:33"]
[BlackClock "0:00:14"]
[Board "67"]

1. d4 {[%clk 0:03:00]}  Nf6 {[%clk 0:02:59]} 2. Nf3 {[%clk 0:03:01]}  d5 {[%clk 0:02:58]} 3. c4 {[%clk 0:03:01]}  e6 {[%clk 0:02:58]} 4. g3 {[%clk 0:03:01]}  Be7 {[%clk 0:02:55]} 5. Bg2 {[%clk 0:03:01]}  O-O {[%clk 0:02:55]} 6. O-O {[%clk 0:03:02]}  dxc4 {[%clk 0:02:55]} 7. Qa4 {[%clk 0:03:02]}  a6 {[%clk 0:02:54]} 8. Qxc4 {[%clk 0:03:02]}  b5 {[%clk 0:02:54]} 9. Qc2 {[%clk 0:03:03]}  Bb7 {[%clk 0:02:54]} 10. Bg5 {[%clk 0:03:02]}  Nbd7 {[%clk 0:02:50]} 11. Bxf6 {[%clk 0:03:02]}  Nxf6 {[%clk 0:02:50]} 12. Nbd2 {[%clk 0:03:02]}  Rc8 {[%clk 0:02:48]} 13. Nb3 {[%clk 0:03:01]}  c5 {[%clk 0:02:45]} 14. dxc5 {[%clk 0:03:00]}  Ne4 {[%clk 0:02:44]} 15. Rfd1 {[%clk 0:02:43]}  Qc7 {[%clk 0:02:41]} 16. c6 {[%clk 0:02:43]}  Qxc6 {[%clk 0:01:56]} 17. Qxc6 {[%clk 0:02:42]}  Bxc6 {[%clk 0:01:57]} 18. Ne5 {[%clk 0:02:41]}  Ba8 {[%clk 0:01:55]} 19. Nd7 {[%clk 0:02:35]}  Rc7 {[%clk 0:00:43]} 20. Nxf8 {[%clk 0:02:33]}  Kxf8 {[%clk 0:00:31]} 21. Rac1 {[%clk 0:02:33]}  Rxc1 {[%clk 0:00:18]} 22. Rxc1 {[%clk 0:02:34]}  Bb7 {[%clk 0:00:14]} 23. Bxe4 {[%clk 0:02:33]} 1-0


[Site "https://www.chess.com"]

[Event "Titled Tuesday Blitz July 11 Early 2023"]
[White "Osmak, Yuliia"]
[Black "Dimitrov, Atanas"]
[WhiteFideId "14101602"]
[BlackFideId "2901315"]
[WhiteElo "2517"]
[BlackElo "2705"]
[Result "0-1"]
[Round "2"]
[TimeControl "180+2"]
[Date "2023.07.11"]
[WhiteClock "0:00:27"]
[BlackClock "0:00:41"]
[Board "68"]

1. Nf3 {[%clk 0:02:55]}  Nf6 {[%clk 0:02:58]} 2. g3 {[%clk 0:02:55]}  d5 {[%clk 0:02:58]} 3. Bg2 {[%clk 0:02:55]}  g6 {[%clk 0:02:58]} 4. O-O {[%clk 0:02:56]}  c5 {[%clk 0:02:59]} 5. d3 {[%clk 0:02:49]}  Bg7 {[%clk 0:02:59]} 6. Nbd2 {[%clk 0:02:48]}  O-O {[%clk 0:02:59]} 7. e4 {[%clk 0:02:48]}  Nc6 {[%clk 0:02:59]} 8. Qe2 {[%clk 0:02:44]}  e5 {[%clk 0:02:56]} 9. c3 {[%clk 0:02:37]}  Re8 {[%clk 0:02:52]} 10. exd5 {[%clk 0:02:32]}  Nxd5 {[%clk 0:02:52]} 11. Nc4 {[%clk 0:02:32]}  Bf5 {[%clk 0:02:44]} 12. Rd1 {[%clk 0:02:22]}  Qc7 {[%clk 0:02:37]} 13. Ne3 {[%clk 0:02:18]}  Nxe3 {[%clk 0:02:36]} 14. Bxe3 {[%clk 0:02:19]}  b6 {[%clk 0:02:19]} 15. Nd2 {[%clk 0:02:15]}  Rad8 {[%clk 0:02:18]} 16. Ne4 {[%clk 0:02:14]}  Be6 {[%clk 0:02:07]} 17. Bg5 {[%clk 0:02:11]}  Rc8 {[%clk 0:01:45]} 18. Nf6+ {[%clk 0:02:09]}  Bxf6 {[%clk 0:01:45]} 19. Bxf6 {[%clk 0:02:10]}  Qd6 {[%clk 0:01:41]} 20. Qf3 {[%clk 0:01:29]}  Bf5 {[%clk 0:01:35]} 21. Bg5 {[%clk 0:01:24]}  f6 {[%clk 0:01:27]} 22. Be3 {[%clk 0:01:14]}  Kg7 {[%clk 0:01:26]} 23. Qd5 {[%clk 0:01:13]}  Qxd5 {[%clk 0:01:10]} 24. Bxd5 {[%clk 0:01:14]}  Red8 {[%clk 0:01:10]} 25. Be4 {[%clk 0:01:12]}  Be6 {[%clk 0:01:07]} 26. f4 {[%clk 0:01:06]}  exf4 {[%clk 0:00:55]} 27. Bxf4 {[%clk 0:01:06]}  Bd5 {[%clk 0:00:55]} 28. Kf2 {[%clk 0:00:54]}  Rd7 {[%clk 0:00:55]} 29. Rd2 {[%clk 0:00:47]}  Rcd8 {[%clk 0:00:45]} 30. Bxd5 {[%clk 0:00:42]}  Rxd5 {[%clk 0:00:46]} 31. Rad1 {[%clk 0:00:41]}  Kf7 {[%clk 0:00:45]} 32. Ke2 {[%clk 0:00:36]}  Re8+ {[%clk 0:00:44]} 33. Kf2 {[%clk 0:00:35]}  g5 {[%clk 0:00:40]} 34. Be3 {[%clk 0:00:35]}  Rf5+ {[%clk 0:00:41]} 35. Ke2 {[%clk 0:00:27]}  Rfe5 {[%clk 0:00:41]} 0-1


[Site "https://www.chess.com"]

[Event "Titled Tuesday Blitz July 11 Early 2023"]
[White "marik_spb"]
[Black "Petrosian, Karlen"]
[BlackFideId "4176146"]
[WhiteElo "2496"]
[BlackElo "2703"]
[Result "0-1"]
[Round "2"]
[TimeControl "180+2"]
[Date "2023.07.11"]
[WhiteClock "0:00:16"]
[BlackClock "0:02:53"]
[Board "70"]

1. g3 {[%clk 0:00:08]}  Nf6 {[%clk 0:02:56]} 2. Bg2 {[%clk 0:00:09]}  g6 {[%clk 0:02:56]} 3. d4 {[%clk 0:00:10]}  Bg7 {[%clk 0:02:56]} 4. c4 {[%clk 0:00:11]}  d6 {[%clk 0:02:57]} 5. Nf3 {[%clk 0:00:12]}  O-O {[%clk 0:02:57]} 6. O-O {[%clk 0:00:13]}  Bf5 {[%clk 0:02:58]} 7. Nc3 {[%clk 0:00:14]}  Ne4 {[%clk 0:02:58]} 8. Bf4 {[%clk 0:00:14]}  Nxc3 {[%clk 0:02:59]} 9. bxc3 {[%clk 0:00:15]}  Be4 {[%clk 0:02:59]} 10. Nd2 {[%clk 0:00:15]}  Bxg2 {[%clk 0:03:00]} 11. Kxg2 {[%clk 0:00:15]}  c5 {[%clk 0:03:01]} 12. Be3 {[%clk 0:00:16]}  Nc6 {[%clk 0:02:58]} 13. d5 {[%clk 0:00:16]}  Na5 {[%clk 0:02:58]} 14. Qa4 {[%clk 0:00:15]}  Bxc3 {[%clk 0:02:55]} 15. Rab1 {[%clk 0:00:16]}  b6 {[%clk 0:02:54]} 16. Ne4 {[%clk 0:00:16]}  Bg7 {[%clk 0:02:53]} 17. Bd2 {[%clk 0:00:17]}  Qe8 {[%clk 0:02:53]} 18. f4 {[%clk 0:00:16]}  Qxa4 {[%clk 0:02:53]} 0-1


[Site "https://www.chess.com"]

[Event "Titled Tuesday Blitz July 11 Early 2023"]
[White "Timerkhanov, Alexander"]
[Black "Bettalli, Francesco"]
[WhiteFideId "24177938"]
[BlackFideId "2816453"]
[WhiteElo "2698"]
[BlackElo "2489"]
[Result "1-0"]
[Round "2"]
[TimeControl "180+2"]
[Date "2023.07.11"]
[WhiteClock "0:00:26"]
[BlackClock "0:00:24"]
[Board "71"]

1. d4 {[%clk 0:03:00]}  g6 {[%clk 0:02:58]} 2. e4 {[%clk 0:03:00]}  Bg7 {[%clk 0:02:59]} 3. Nc3 {[%clk 0:03:00]}  c5 {[%clk 0:02:58]} 4. Nf3 {[%clk 0:03:00]}  cxd4 {[%clk 0:02:58]} 5. Nxd4 {[%clk 0:03:00]}  Nc6 {[%clk 0:02:58]} 6. Be3 {[%clk 0:03:00]}  Nf6 {[%clk 0:02:56]} 7. f3 {[%clk 0:03:00]}  O-O {[%clk 0:02:55]} 8. Bc4 {[%clk 0:02:58]}  Qb6 {[%clk 0:02:55]} 9. Qd2 {[%clk 0:02:50]}  Nxe4 {[%clk 0:02:55]} 10. Nxc6 {[%clk 0:02:43]}  Qxc6 {[%clk 0:02:30]} 11. fxe4 {[%clk 0:02:27]}  Qxc4 {[%clk 0:02:30]} 12. h4 {[%clk 0:02:24]}  h5 {[%clk 0:02:30]} 13. g4 {[%clk 0:02:24]}  d5 {[%clk 0:02:24]} 14. O-O-O {[%clk 0:02:05]}  Bxg4 {[%clk 0:02:23]} 15. Nxd5 {[%clk 0:01:36]}  Bxd1 {[%clk 0:02:21]} 16. Rxd1 {[%clk 0:01:37]}  Qxe4 {[%clk 0:02:20]} 17. Bg5 {[%clk 0:01:31]}  Kh7 {[%clk 0:02:12]} 18. Bxe7 {[%clk 0:01:28]}  Rfe8 {[%clk 0:02:08]} 19. Bf6 {[%clk 0:01:27]}  Qf5 {[%clk 0:01:39]} 20. Qd4 {[%clk 0:01:12]}  Re4 {[%clk 0:01:22]} 21. Qc3 {[%clk 0:00:46]}  Rc8 {[%clk 0:01:22]} 22. Bxg7 {[%clk 0:00:43]}  Rxc3 {[%clk 0:01:21]} 23. Bxc3 {[%clk 0:00:44]}  Rxh4 {[%clk 0:01:15]} 24. Nf6+ {[%clk 0:00:44]}  Kh6 {[%clk 0:01:15]} 25. Ng8+ {[%clk 0:00:41]}  Kg5 {[%clk 0:01:04]} 26. Bd2+ {[%clk 0:00:41]}  Rf4 {[%clk 0:01:03]} 27. Rf1 {[%clk 0:00:36]}  Qc8 {[%clk 0:00:48]} 28. Bxf4+ {[%clk 0:00:33]}  Kg4 {[%clk 0:00:45]} 29. Nf6+ {[%clk 0:00:34]}  Kh3 {[%clk 0:00:45]} 30. Rf2 {[%clk 0:00:31]}  Kh4 {[%clk 0:00:28]} 31. Rh2+ {[%clk 0:00:31]}  Qh3 {[%clk 0:00:28]} 32. Rxh3+ {[%clk 0:00:30]}  Kxh3 {[%clk 0:00:29]} 33. Kd2 {[%clk 0:00:29]}  Kg2 {[%clk 0:00:29]} 34. Ke3 {[%clk 0:00:29]}  h4 {[%clk 0:00:29]} 35. Ng4 {[%clk 0:00:27]}  f5 {[%clk 0:00:28]} 36. Ne5 {[%clk 0:00:27]}  g5 {[%clk 0:00:22]} 37. Bxg5 {[%clk 0:00:27]}  h3 {[%clk 0:00:23]} 38. Bf4 {[%clk 0:00:27]}  h2 {[%clk 0:00:23]} 39. Bxh2 {[%clk 0:00:26]}  Kxh2 {[%clk 0:00:24]} 1-0


[Site "https://www.chess.com"]

[Event "Titled Tuesday Blitz July 11 Early 2023"]
[White "Lorparizangeneh, Shahin"]
[Black "Khromkin, Andrey"]
[WhiteFideId "12521604"]
[BlackFideId "4154126"]
[WhiteElo "2686"]
[BlackElo "2445"]
[Result "1-0"]
[Round "2"]
[TimeControl "180+2"]
[Date "2023.07.11"]
[WhiteClock "0:01:01"]
[BlackClock "0:00:06"]
[Board "75"]

1. e4 {[%clk 0:02:24]}  c5 {[%clk 0:02:59]} 2. Nf3 {[%clk 0:02:24]}  Nc6 {[%clk 0:02:59]} 3. Bb5 {[%clk 0:02:25]}  g6 {[%clk 0:02:59]} 4. O-O {[%clk 0:02:24]}  Bg7 {[%clk 0:02:59]} 5. c4 {[%clk 0:02:25]}  Nf6 {[%clk 0:02:50]} 6. Nc3 {[%clk 0:02:21]}  O-O {[%clk 0:02:49]} 7. h3 {[%clk 0:02:14]}  Nd4 {[%clk 0:02:48]} 8. d3 {[%clk 0:02:13]}  Nxb5 {[%clk 0:02:45]} 9. Nxb5 {[%clk 0:02:13]}  a6 {[%clk 0:02:44]} 10. Nc3 {[%clk 0:02:11]}  d6 {[%clk 0:02:43]} 11. d4 {[%clk 0:02:10]}  cxd4 {[%clk 0:02:43]} 12. Nxd4 {[%clk 0:02:11]}  b5 {[%clk 0:02:22]} 13. cxb5 {[%clk 0:02:02]}  axb5 {[%clk 0:02:22]} 14. Ndxb5 {[%clk 0:02:00]}  Ba6 {[%clk 0:02:22]} 15. Re1 {[%clk 0:01:57]}  Qd7 {[%clk 0:01:45]} 16. a4 {[%clk 0:01:50]}  Rfb8 {[%clk 0:01:43]} 17. Be3 {[%clk 0:01:43]}  Qc6 {[%clk 0:01:36]} 18. Bd4 {[%clk 0:01:38]}  Qc4 {[%clk 0:01:29]} 19. b3 {[%clk 0:01:35]}  Qc8 {[%clk 0:01:01]} 20. Rc1 {[%clk 0:01:31]}  Qd7 {[%clk 0:00:59]} 21. e5 {[%clk 0:01:21]}  Ne8 {[%clk 0:00:40]} 22. exd6 {[%clk 0:01:10]}  Nxd6 {[%clk 0:00:36]} 23. Bxg7 {[%clk 0:01:05]}  Kxg7 {[%clk 0:00:36]} 24. Nxd6 {[%clk 0:01:05]}  exd6 {[%clk 0:00:36]} 25. Qd4+ {[%clk 0:01:03]}  Kg8 {[%clk 0:00:35]} 26. Nd5 {[%clk 0:01:04]}  Qa7 {[%clk 0:00:06]} 27. Ne7+ {[%clk 0:01:01]} 1-0


[Site "https://www.chess.com"]